[Event "Titled Tuesday Blitz June 27 Early 2023"]
[White "Yuan, Qingyu"]
[Black "Mamedov, Edgar"]
[WhiteFideId "8609772"]
[BlackFideId "13739980"]
[WhiteElo "2720"]
[BlackElo "2550"]
[Result "0-1"]
[Round "8"]
[TimeControl "180+2"]
[Date "2023.06.27"]
[WhiteClock "0:00:02"]
[BlackClock "0:00:05"]
[Board "59"]

1. e4 {[%clk 0:03:00]}  c5 {[%clk 0:02:58]} 2. Nf3 {[%clk 0:03:00]}  Nc6 {[%clk 0:02:57]} 3. Bb5 {[%clk 0:02:58]}  e5 {[%clk 0:02:55]} 4. O-O {[%clk 0:02:52]}  Bd6 {[%clk 0:02:53]} 5. c3 {[%clk 0:02:53]}  a6 {[%clk 0:02:46]} 6. Bc4 {[%clk 0:02:44]}  Nf6 {[%clk 0:02:34]} 7. d4 {[%clk 0:02:43]}  cxd4 {[%clk 0:02:10]} 8. cxd4 {[%clk 0:02:43]}  exd4 {[%clk 0:02:05]} 9. e5 {[%clk 0:02:15]}  Bxe5 {[%clk 0:02:01]} 10. Nxe5 {[%clk 0:02:07]}  Nxe5 {[%clk 0:02:02]} 11. Re1 {[%clk 0:02:07]}  O-O {[%clk 0:01:58]} 12. Rxe5 {[%clk 0:01:57]}  Qc7 {[%clk 0:01:58]} 13. Qxd4 {[%clk 0:01:54]}  d5 {[%clk 0:01:54]} 14. Bg5 {[%clk 0:01:21]}  Ng4 {[%clk 0:01:31]} 15. Rxd5 {[%clk 0:01:06]}  Qxh2+ {[%clk 0:01:10]} 16. Kf1 {[%clk 0:01:06]}  Qh1+ {[%clk 0:01:07]} 17. Ke2 {[%clk 0:01:06]}  Be6 {[%clk 0:01:06]} 18. Kf3 {[%clk 0:00:43]}  Qh5 {[%clk 0:00:54]} 19. Kg3 {[%clk 0:00:29]}  Qh2+ {[%clk 0:00:51]} 20. Kf3 {[%clk 0:00:30]}  Bxd5+ {[%clk 0:00:48]} 21. Bxd5 {[%clk 0:00:28]}  Ne5+ {[%clk 0:00:48]} 22. Ke2 {[%clk 0:00:27]}  Qh5+ {[%clk 0:00:43]} 23. Kf1 {[%clk 0:00:20]}  Qxg5 {[%clk 0:00:37]} 24. f4 {[%clk 0:00:21]}  Qh4 {[%clk 0:00:25]} 25. Qxe5 {[%clk 0:00:20]}  Rfe8 {[%clk 0:00:23]} 26. Qc3 {[%clk 0:00:16]}  Rad8 {[%clk 0:00:22]} 27. Bf3 {[%clk 0:00:10]}  Qxf4 {[%clk 0:00:16]} 28. Na3 {[%clk 0:00:07]}  Re3 {[%clk 0:00:16]} 29. Qc4 {[%clk 0:00:07]}  Rxf3+ {[%clk 0:00:13]} 30. gxf3 {[%clk 0:00:07]}  Qxf3+ {[%clk 0:00:14]} 31. Kg1 {[%clk 0:00:07]}  Qg3+ {[%clk 0:00:14]} 32. Kf1 {[%clk 0:00:07]}  Qh2 {[%clk 0:00:12]} 33. Re1 {[%clk 0:00:04]}  Qxb2 {[%clk 0:00:11]} 34. Qc7 {[%clk 0:00:03]}  Qf6+ {[%clk 0:00:09]} 35. Kg1 {[%clk 0:00:03]}  h6 {[%clk 0:00:07]} 36. Nc4 {[%clk 0:00:04]}  Qg5+ {[%clk 0:00:05]} 37. Kf1 {[%clk 0:00:04]}  Qf5+ {[%clk 0:00:05]} 38. Kg1 {[%clk 0:00:04]}  Qg4+ {[%clk 0:00:05]} 39. Kf1 {[%clk 0:00:05]}  Rc8 {[%clk 0:00:05]} 40. Ne5 {[%clk 0:00:04]}  Qh3+ {[%clk 0:00:05]} 41. Kf2 {[%clk 0:00:04]}  Rxc7 {[%clk 0:00:05]} 42. Nd3 {[%clk 0:00:05]}  Rc2+ {[%clk 0:00:05]} 43. Re2 {[%clk 0:00:02]}  Qxd3 {[%clk 0:00:05]} 0-1


[Site "https://www.chess.com"]

[Event "Titled Tuesday Blitz June 27 Early 2023"]
[White "Berezin, Viktor"]
[Black "Fernandez Guillen, Ernesto J."]
[WhiteFideId "14107872"]
[BlackFideId "3512428"]
[WhiteElo "2537"]
[BlackElo "2693"]
[Result "1-0"]
[Round "8"]
[TimeControl "180+2"]
[Date "2023.06.27"]
[WhiteClock "0:00:07"]
[BlackClock "0:00:13"]
[Board "62"]

1. d4 {[%clk 0:02:53]}  Nf6 {[%clk 0:02:51]} 2. Nf3 {[%clk 0:02:52]}  g6 {[%clk 0:02:35]} 3. g3 {[%clk 0:02:50]}  Bg7 {[%clk 0:02:26]} 4. Bg2 {[%clk 0:02:50]}  O-O {[%clk 0:02:12]} 5. O-O {[%clk 0:02:50]}  d5 {[%clk 0:02:12]} 6. c4 {[%clk 0:02:50]}  c6 {[%clk 0:02:12]} 7. cxd5 {[%clk 0:02:50]}  Nxd5 {[%clk 0:02:13]} 8. Nc3 {[%clk 0:02:47]}  Nb6 {[%clk 0:02:03]} 9. h3 {[%clk 0:02:43]}  N8d7 {[%clk 0:02:03]} 10. e4 {[%clk 0:02:41]}  e5 {[%clk 0:01:41]} 11. dxe5 {[%clk 0:02:23]}  Nxe5 {[%clk 0:01:42]} 12. Nxe5 {[%clk 0:02:21]}  Bxe5 {[%clk 0:01:38]} 13. Bh6 {[%clk 0:02:12]}  Re8 {[%clk 0:01:33]} 14. Qc2 {[%clk 0:02:10]}  Qe7 {[%clk 0:01:33]} 15. Rad1 {[%clk 0:02:06]}  Be6 {[%clk 0:01:31]} 16. Be3 {[%clk 0:02:00]}  Nc4 {[%clk 0:01:31]} 17. Bd4 {[%clk 0:01:57]}  Bxd4 {[%clk 0:01:30]} 18. Rxd4 {[%clk 0:01:58]}  Rad8 {[%clk 0:01:30]} 19. Rfd1 {[%clk 0:01:55]}  Rxd4 {[%clk 0:01:25]} 20. Rxd4 {[%clk 0:01:56]}  Rd8 {[%clk 0:01:25]} 21. Ne2 {[%clk 0:01:18]}  Rxd4 {[%clk 0:01:13]} 22. Nxd4 {[%clk 0:01:19]}  Qb4 {[%clk 0:01:13]} 23. Nxe6 {[%clk 0:01:14]}  fxe6 {[%clk 0:01:14]} 24. b3 {[%clk 0:01:08]}  Ne5 {[%clk 0:01:11]} 25. Kh2 {[%clk 0:01:02]}  Qd4 {[%clk 0:01:07]} 26. f4 {[%clk 0:00:57]}  Nd3 {[%clk 0:01:06]} 27. Qd2 {[%clk 0:00:51]}  c5 {[%clk 0:01:02]} 28. Bf1 {[%clk 0:00:41]}  Nb4 {[%clk 0:00:58]} 29. Qg2 {[%clk 0:00:35]}  e5 {[%clk 0:00:55]} 30. Bc4+ {[%clk 0:00:34]}  Kg7 {[%clk 0:00:55]} 31. f5 {[%clk 0:00:34]}  gxf5 {[%clk 0:00:50]} 32. exf5 {[%clk 0:00:33]}  e4 {[%clk 0:00:51]} 33. Qe2 {[%clk 0:00:30]}  e3 {[%clk 0:00:42]} 34. Kg2 {[%clk 0:00:26]}  Nc6 {[%clk 0:00:39]} 35. Qh5 {[%clk 0:00:17]}  Qf6 {[%clk 0:00:30]} 36. Qg4+ {[%clk 0:00:15]}  Kf8 {[%clk 0:00:30]} 37. Qe4 {[%clk 0:00:14]}  Qe5 {[%clk 0:00:24]} 38. Kf3 {[%clk 0:00:10]}  Nd4+ {[%clk 0:00:23]} 39. Kxe3 {[%clk 0:00:11]}  Qxg3+ {[%clk 0:00:23]} 40. Kd2 {[%clk 0:00:10]}  Qf2+ {[%clk 0:00:24]} 41. Kc3 {[%clk 0:00:08]}  Qxf5 {[%clk 0:00:24]} 42. Qg2 {[%clk 0:00:01]}  Ke7 {[%clk 0:00:20]} 43. Bd3 {[%clk 0:00:02]}  Qe5 {[%clk 0:00:20]} 44. Qxb7+ {[%clk 0:00:02]}  Kf6 {[%clk 0:00:19]} 45. Qxh7 {[%clk 0:00:02]}  Qe1+ {[%clk 0:00:12]} 46. Kc4 {[%clk 0:00:01]}  Qe6+ {[%clk 0:00:12]} 47. Kc3 {[%clk 0:00:01]}  Ke5 {[%clk 0:00:10]} 48. Qe4+ {[%clk 0:00:01]}  Kd6 {[%clk 0:00:11]} 49. Qxe6+ {[%clk 0:00:02]}  Nxe6 {[%clk 0:00:12]} 50. Bc4 {[%clk 0:00:03]}  Nf4 {[%clk 0:00:12]} 51. h4 {[%clk 0:00:04]}  Ke5 {[%clk 0:00:13]} 52. b4 {[%clk 0:00:03]}  cxb4+ {[%clk 0:00:14]} 53. Kxb4 {[%clk 0:00:04]}  Kf6 {[%clk 0:00:12]} 54. Ka5 {[%clk 0:00:03]}  Ng6 {[%clk 0:00:13]} 55. h5 {[%clk 0:00:03]}  Ne5 {[%clk 0:00:14]} 56. Bb5 {[%clk 0:00:03]}  Kg5 {[%clk 0:00:14]} 57. Ka6 {[%clk 0:00:04]}  Nf3 {[%clk 0:00:14]} 58. Kxa7 {[%clk 0:00:04]}  Nd4 {[%clk 0:00:14]} 59. a4 {[%clk 0:00:04]}  Nb3 {[%clk 0:00:14]} 60. Kb6 {[%clk 0:00:05]}  Kxh5 {[%clk 0:00:14]} 61. Bc4 {[%clk 0:00:05]}  Nd2 {[%clk 0:00:14]} 62. Bd5 {[%clk 0:00:05]}  Kg5 {[%clk 0:00:15]} 63. a5 {[%clk 0:00:06]}  Nf1 {[%clk 0:00:15]} 64. a6 {[%clk 0:00:06]}  Ne3 {[%clk 0:00:16]} 65. Be6 {[%clk 0:00:06]}  Kf6 {[%clk 0:00:15]} 66. a7 {[%clk 0:00:06]}  Kxe6 {[%clk 0:00:16]} 67. a8=Q {[%clk 0:00:07]}  Nc4+ {[%clk 0:00:17]} 68. Kc5 {[%clk 0:00:07]}  Ne5 {[%clk 0:00:18]} 69. Qd5+ {[%clk 0:00:07]}  Kf5 {[%clk 0:00:13]} 70. Kd6 {[%clk 0:00:07]} 1-0


[Site "https://www.chess.com"]

[Event "Titled Tuesday Blitz June 27 Early 2023"]
[White "Mattheii"]
[Black "djokovic74"]
[WhiteElo "2530"]
[BlackElo "2676"]
[Result "0-1"]
[Round "8"]
[TimeControl "180+2"]
[Date "2023.06.27"]
[WhiteClock "0:00:05"]
[BlackClock "0:00:08"]
[Board "63"]

1. d4 {[%clk 0:03:00]}  e6 {[%clk 0:03:00]} 2. c4 {[%clk 0:03:01]}  Nf6 {[%clk 0:03:00]} 3. Nc3 {[%clk 0:03:01]}  Bb4 {[%clk 0:03:01]} 4. Qc2 {[%clk 0:03:01]}  d6 {[%clk 0:02:58]} 5. e4 {[%clk 0:03:01]}  c5 {[%clk 0:02:58]} 6. d5 {[%clk 0:03:00]}  O-O {[%clk 0:02:57]} 7. Nf3 {[%clk 0:02:49]}  exd5 {[%clk 0:02:56]} 8. exd5 {[%clk 0:02:47]}  Re8+ {[%clk 0:02:54]} 9. Be2 {[%clk 0:02:48]}  Bg4 {[%clk 0:02:47]} 10. O-O {[%clk 0:02:46]}  Bxc3 {[%clk 0:02:46]} 11. bxc3 {[%clk 0:02:45]}  Bxf3 {[%clk 0:02:45]} 12. Bxf3 {[%clk 0:02:45]}  Nbd7 {[%clk 0:02:46]} 13. Bf4 {[%clk 0:02:46]}  Ne5 {[%clk 0:02:46]} 14. Be2 {[%clk 0:02:45]}  Qd7 {[%clk 0:02:42]} 15. h3 {[%clk 0:02:41]}  Ng6 {[%clk 0:02:39]} 16. Bh2 {[%clk 0:02:38]}  Ne4 {[%clk 0:02:31]} 17. Bd3 {[%clk 0:02:34]}  Nf6 {[%clk 0:02:30]} 18. Rfe1 {[%clk 0:02:33]}  Ne5 {[%clk 0:02:26]} 19. Bf1 {[%clk 0:02:05]}  Qc7 {[%clk 0:02:25]} 20. f4 {[%clk 0:01:58]}  Ned7 {[%clk 0:02:24]} 21. Bd3 {[%clk 0:01:58]}  b5 {[%clk 0:02:10]} 22. cxb5 {[%clk 0:01:54]}  c4 {[%clk 0:02:11]} 23. Bf5 {[%clk 0:01:54]}  Nb6 {[%clk 0:02:04]} 24. a4 {[%clk 0:01:30]}  Nbxd5 {[%clk 0:01:56]} 25. Qd2 {[%clk 0:01:30]}  g6 {[%clk 0:01:51]} 26. Bc2 {[%clk 0:01:29]}  Qc5+ {[%clk 0:01:51]} 27. Kh1 {[%clk 0:01:29]}  Rxe1+ {[%clk 0:01:42]} 28. Rxe1 {[%clk 0:01:30]}  Qa3 {[%clk 0:01:42]} 29. Be4 {[%clk 0:01:02]}  Re8 {[%clk 0:01:12]} 30. Bxd5 {[%clk 0:00:57]}  Rxe1+ {[%clk 0:01:12]} 31. Qxe1 {[%clk 0:00:58]}  Nxd5 {[%clk 0:01:13]} 32. f5 {[%clk 0:00:56]}  Kg7 {[%clk 0:00:36]} 33. Qd2 {[%clk 0:00:38]}  Nxc3 {[%clk 0:00:30]} 34. Bxd6 {[%clk 0:00:31]}  Qa1+ {[%clk 0:00:30]} 35. Kh2 {[%clk 0:00:30]}  Ne4 {[%clk 0:00:31]} 36. Qf4 {[%clk 0:00:23]}  Nxd6 {[%clk 0:00:25]} 37. Qxd6 {[%clk 0:00:24]}  Qf6 {[%clk 0:00:13]} 38. Qxf6+ {[%clk 0:00:15]}  Kxf6 {[%clk 0:00:13]} 39. a5 {[%clk 0:00:16]}  c3 {[%clk 0:00:12]} 40. b6 {[%clk 0:00:16]}  axb6 {[%clk 0:00:13]} 41. axb6 {[%clk 0:00:17]}  c2 {[%clk 0:00:13]} 42. b7 {[%clk 0:00:17]}  c1=Q {[%clk 0:00:13]} 43. b8=Q {[%clk 0:00:18]}  Kxf5 {[%clk 0:00:10]} 44. Qb5+ {[%clk 0:00:17]}  Kf6 {[%clk 0:00:09]} 45. Qb6+ {[%clk 0:00:13]}  Kg7 {[%clk 0:00:09]} 46. Qd4+ {[%clk 0:00:14]}  f6 {[%clk 0:00:07]} 47. Qd7+ {[%clk 0:00:13]}  Kh6 {[%clk 0:00:08]} 48. Qd6 {[%clk 0:00:13]}  Qg5 {[%clk 0:00:07]} 49. Qf8+ {[%clk 0:00:11]}  Kh5 {[%clk 0:00:07]} 50. Qd6 {[%clk 0:00:07]}  Qe5+ {[%clk 0:00:07]} 51. Qxe5+ {[%clk 0:00:07]}  fxe5 {[%clk 0:00:08]} 52. Kg3 {[%clk 0:00:08]}  Kg5 {[%clk 0:00:09]} 53. Kf3 {[%clk 0:00:09]}  Kf5 {[%clk 0:00:09]} 54. g4+ {[%clk 0:00:09]}  Kf6 {[%clk 0:00:08]} 55. h4 {[%clk 0:00:08]}  h6 {[%clk 0:00:04]} 56. Ke4 {[%clk 0:00:08]}  Ke6 {[%clk 0:00:05]} 57. h5 {[%clk 0:00:03]}  g5 {[%clk 0:00:05]} 58. Ke3 {[%clk 0:00:03]}  Kd5 {[%clk 0:00:06]} 59. Kd3 {[%clk 0:00:03]}  e4+ {[%clk 0:00:06]} 60. Ke3 {[%clk 0:00:04]}  Ke5 {[%clk 0:00:07]} 61. Ke2 {[%clk 0:00:05]}  Kf4 {[%clk 0:00:08]} 62. Kf2 {[%clk 0:00:05]}  Kxg4 {[%clk 0:00:08]} 0-1


[Site "https://www.chess.com"]

[Event "Titled Tuesday Blitz June 27 Early 2023"]
[White "Ritvin, Stanislav"]
[Black "Khoroshev, Nikita"]
[WhiteFideId "2011751"]
[BlackFideId "14200287"]
[WhiteElo "2507"]
[BlackElo "2666"]
[Result "1-0"]
[Round "8"]
[TimeControl "180+2"]
[Date "2023.06.27"]
[WhiteClock "0:00:13"]
[BlackClock "0:00:59"]
[Board "64"]

1. e4 {[%clk 0:03:00]}  e6 {[%clk 0:02:59]} 2. d4 {[%clk 0:03:00]}  d5 {[%clk 0:02:59]} 3. Nc3 {[%clk 0:03:00]}  dxe4 {[%clk 0:02:58]} 4. Nxe4 {[%clk 0:03:00]}  Nd7 {[%clk 0:02:58]} 5. Nf3 {[%clk 0:02:59]}  Ngf6 {[%clk 0:02:58]} 6. Nxf6+ {[%clk 0:02:59]}  Nxf6 {[%clk 0:02:59]} 7. Bd3 {[%clk 0:02:56]}  c5 {[%clk 0:02:58]} 8. O-O {[%clk 0:02:51]}  Qc7 {[%clk 0:02:47]} 9. Re1 {[%clk 0:02:46]}  Be7 {[%clk 0:02:43]} 10. dxc5 {[%clk 0:02:44]}  Qxc5 {[%clk 0:02:43]} 11. Be3 {[%clk 0:02:37]}  Qc7 {[%clk 0:02:41]} 12. Bd4 {[%clk 0:02:37]}  O-O {[%clk 0:02:38]} 13. Ng5 {[%clk 0:02:26]}  h6 {[%clk 0:02:11]} 14. Bxf6 {[%clk 0:02:20]}  gxf6 {[%clk 0:02:04]} 15. Qh5 {[%clk 0:01:49]}  Kg7 {[%clk 0:02:04]} 16. Nxe6+ {[%clk 0:01:42]}  Bxe6 {[%clk 0:01:58]} 17. Rxe6 {[%clk 0:01:42]}  Rg8 {[%clk 0:01:35]} 18. Re3 {[%clk 0:01:17]}  Bd6 {[%clk 0:01:35]} 19. Rae1 {[%clk 0:01:07]}  Qc5 {[%clk 0:01:28]} 20. Rg3+ {[%clk 0:00:59]}  Qg5 {[%clk 0:01:18]} 21. Rxg5+ {[%clk 0:00:57]}  fxg5 {[%clk 0:01:19]} 22. h4 {[%clk 0:00:54]}  Rae8 {[%clk 0:01:15]} 23. Rxe8 {[%clk 0:00:51]}  Rxe8 {[%clk 0:01:16]} 24. g3 {[%clk 0:00:52]}  Re5 {[%clk 0:01:15]} 25. hxg5 {[%clk 0:00:49]}  Rxg5 {[%clk 0:01:16]} 26. Qf3 {[%clk 0:00:49]}  b5 {[%clk 0:01:14]} 27. Qb7 {[%clk 0:00:45]}  Bc5 {[%clk 0:01:13]} 28. Bxb5 {[%clk 0:00:41]}  Rxg3+ {[%clk 0:01:11]} 29. Kf1 {[%clk 0:00:38]}  Rg5 {[%clk 0:01:11]} 30. Bd3 {[%clk 0:00:37]}  h5 {[%clk 0:01:11]} 31. b4 {[%clk 0:00:35]}  Bd4 {[%clk 0:01:08]} 32. Qe4 {[%clk 0:00:32]}  Bb6 {[%clk 0:01:08]} 33. c4 {[%clk 0:00:31]}  Bc7 {[%clk 0:01:07]} 34. c5 {[%clk 0:00:29]}  Be5 {[%clk 0:01:06]} 35. b5 {[%clk 0:00:27]}  Bh2 {[%clk 0:01:03]} 36. c6 {[%clk 0:00:22]}  Rg4 {[%clk 0:01:02]} 37. Qh7+ {[%clk 0:00:21]}  Kf8 {[%clk 0:01:02]} 38. Qxh5 {[%clk 0:00:20]}  Rg1+ {[%clk 0:01:02]} 39. Ke2 {[%clk 0:00:20]}  Bd6 {[%clk 0:01:03]} 40. Qd5 {[%clk 0:00:18]}  Ke7 {[%clk 0:01:03]} 41. Qe4+ {[%clk 0:00:15]}  Kd8 {[%clk 0:01:03]} 42. Qd4 {[%clk 0:00:15]}  Ke7 {[%clk 0:01:02]} 43. Qxa7+ {[%clk 0:00:15]}  Kf6 {[%clk 0:01:02]} 44. Qd7 {[%clk 0:00:14]}  Be5 {[%clk 0:01:02]} 45. c7 {[%clk 0:00:13]}  Rc1 {[%clk 0:00:59]} 46. c8=Q {[%clk 0:00:13]} 1-0


[Site "https://www.chess.com"]

[Event "Titled Tuesday Blitz June 27 Early 2023"]
[White "Ginzburg, Yakov"]
[Black "Sahib Singh"]
[WhiteFideId "4157176"]
[BlackFideId "25618342"]
[WhiteElo "2499"]
[BlackElo "2658"]
[Result "1-0"]
[Round "8"]
[TimeControl "180+2"]
[Date "2023.06.27"]
[WhiteClock "0:00:37"]
[BlackClock "0:00:00"]
[Board "65"]

1. d4 {[%clk 0:02:59]}  d5 {[%clk 0:02:56]} 2. c4 {[%clk 0:02:59]}  e6 {[%clk 0:02:40]} 3. g3 {[%clk 0:02:56]}  dxc4 {[%clk 0:02:39]} 4. Bg2 {[%clk 0:02:56]}  c5 {[%clk 0:02:39]} 5. Nf3 {[%clk 0:02:52]}  Nc6 {[%clk 0:02:39]} 6. O-O {[%clk 0:02:43]}  cxd4 {[%clk 0:02:39]} 7. Qa4 {[%clk 0:02:40]}  Bd7 {[%clk 0:02:36]} 8. Qxc4 {[%clk 0:02:39]}  Rc8 {[%clk 0:02:24]} 9. Nxd4 {[%clk 0:02:36]}  Nf6 {[%clk 0:02:18]} 10. Nc3 {[%clk 0:02:35]}  Nxd4 {[%clk 0:02:11]} 11. Qxd4 {[%clk 0:02:35]}  Bc5 {[%clk 0:02:12]} 12. Qh4 {[%clk 0:02:32]}  O-O {[%clk 0:01:57]} 13. Bg5 {[%clk 0:02:31]}  Be7 {[%clk 0:01:50]} 14. Rad1 {[%clk 0:02:28]}  h6 {[%clk 0:01:34]} 15. Bxh6 {[%clk 0:02:11]}  gxh6 {[%clk 0:01:23]} 16. Qxh6 {[%clk 0:02:11]}  Nh7 {[%clk 0:00:37]} 17. Be4 {[%clk 0:02:09]}  f5 {[%clk 0:00:33]} 18. Bxb7 {[%clk 0:02:08]}  Rc7 {[%clk 0:00:31]} 19. Bf3 {[%clk 0:01:55]}  Rf6 {[%clk 0:00:27]} 20. Qh4 {[%clk 0:01:52]}  Rg6 {[%clk 0:00:18]} 21. Qf4 {[%clk 0:01:44]}  Ng5 {[%clk 0:00:13]} 22. Bg2 {[%clk 0:01:42]}  Qc8 {[%clk 0:00:14]} 23. h4 {[%clk 0:01:41]}  Nf7 {[%clk 0:00:10]} 24. e4 {[%clk 0:01:37]}  Rc4 {[%clk 0:00:09]} 25. Rfe1 {[%clk 0:01:32]}  e5 {[%clk 0:00:07]} 26. Qd2 {[%clk 0:01:31]}  Rd4 {[%clk 0:00:06]} 27. Qc1 {[%clk 0:01:23]}  Rxd1 {[%clk 0:00:05]} 28. Rxd1 {[%clk 0:01:23]}  Be6 {[%clk 0:00:03]} 29. Nd5 {[%clk 0:01:19]}  Qf8 {[%clk 0:00:03]} 30. exf5 {[%clk 0:01:15]}  Bxf5 {[%clk 0:00:04]} 31. h5 {[%clk 0:01:11]}  Rd6 {[%clk 0:00:04]} 32. Qe3 {[%clk 0:01:01]}  Bg5 {[%clk 0:00:04]} 33. Qxa7 {[%clk 0:01:00]}  e4 {[%clk 0:00:03]} 34. Qd4 {[%clk 0:00:56]}  Qd8 {[%clk 0:00:03]} 35. b4 {[%clk 0:00:53]}  Re6 {[%clk 0:00:03]} 36. b5 {[%clk 0:00:53]}  Qb8 {[%clk 0:00:03]} 37. a4 {[%clk 0:00:52]}  Kh7 {[%clk 0:00:03]} 38. b6 {[%clk 0:00:51]}  Qa8 {[%clk 0:00:02]} 39. Qb4 {[%clk 0:00:49]}  Qc6 {[%clk 0:00:02]} 40. b7 {[%clk 0:00:47]}  Re8 {[%clk 0:00:01]} 41. b8=Q {[%clk 0:00:46]}  Rxb8 {[%clk 0:00:02]} 42. Qxb8 {[%clk 0:00:46]}  Qxa4 {[%clk 0:00:03]} 43. Qb1 {[%clk 0:00:44]}  e3 {[%clk 0:00:02]} 44. Qxf5+ {[%clk 0:00:43]}  Kh8 {[%clk 0:00:02]} 45. Rb1 {[%clk 0:00:39]}  exf2+ {[%clk 0:00:00]} 46. Qxf2 {[%clk 0:00:37]} 1-0


[Site "https://www.chess.com"]

[Event "Titled Tuesday Blitz June 27 Early 2023"]
[White "Kaidanov, Gregory"]
[Black "Baches Garcia, Guillermo"]
[WhiteFideId "2008564"]
[BlackFideId "2209764"]
[WhiteElo "2652"]
[BlackElo "2498"]
[Result "1-0"]
[Round "8"]
[TimeControl "180+2"]
[Date "2023.06.27"]
[WhiteClock "0:01:41"]
[BlackClock "0:00:00"]
[Board "66"]

1. d4 {[%clk 0:03:00]}  d5 {[%clk 0:03:00]} 2. c4 {[%clk 0:03:00]}  e6 {[%clk 0:03:00]} 3. Nf3 {[%clk 0:03:00]}  h6 {[%clk 0:03:00]} 4. g3 {[%clk 0:03:00]}  Nf6 {[%clk 0:03:00]} 5. Bg2 {[%clk 0:03:00]}  Bd6 {[%clk 0:03:00]} 6. O-O {[%clk 0:03:00]}  O-O {[%clk 0:03:00]} 7. Nbd2 {[%clk 0:02:58]}  c5 {[%clk 0:02:59]} 8. cxd5 {[%clk 0:02:57]}  exd5 {[%clk 0:02:58]} 9. dxc5 {[%clk 0:02:57]}  Bxc5 {[%clk 0:02:58]} 10. Nb3 {[%clk 0:02:58]}  Bb6 {[%clk 0:02:56]} 11. Nbd4 {[%clk 0:02:52]}  Nc6 {[%clk 0:02:53]} 12. Bf4 {[%clk 0:02:52]}  Re8 {[%clk 0:02:47]} 13. Rc1 {[%clk 0:02:51]}  Bd7 {[%clk 0:02:26]} 14. Nb5 {[%clk 0:02:51]}  g5 {[%clk 0:02:07]} 15. Nxg5 {[%clk 0:02:35]}  hxg5 {[%clk 0:02:00]} 16. Bxg5 {[%clk 0:02:36]}  Bf5 {[%clk 0:01:48]} 17. Qd2 {[%clk 0:02:26]}  Bg6 {[%clk 0:01:17]} 18. Qf4 {[%clk 0:02:24]}  Kg7 {[%clk 0:01:13]} 19. Nd6 {[%clk 0:02:18]}  Re6 {[%clk 0:00:45]} 20. Nf5+ {[%clk 0:02:18]}  Kg8 {[%clk 0:00:40]} 21. Nh6+ {[%clk 0:02:14]}  Kg7 {[%clk 0:00:40]} 22. Ng4 {[%clk 0:02:13]}  Nh5 {[%clk 0:00:28]} 23. Qd2 {[%clk 0:02:03]}  Qe8 {[%clk 0:00:20]} 24. e3 {[%clk 0:01:57]}  d4 {[%clk 0:00:20]} 25. e4 {[%clk 0:01:41]}  Bxe4 {[%clk 0:00:10]} 26. Bxe4 {[%clk 0:01:41]}  Rxe4 {[%clk 0:00:00]} 27. Bf6+ {[%clk 0:01:41]} 1-0


[Site "https://www.chess.com"]

[Event "Titled Tuesday Blitz June 27 Early 2023"]
[White "Karttunen, Mika"]
[Black "Jovic, Stanoje"]
[WhiteFideId "502081"]
[BlackFideId "905020"]
[WhiteElo "2651"]
[BlackElo "2494"]
[Result "1-0"]
[Round "8"]
[TimeControl "180+2"]
[Date "2023.06.27"]
[WhiteClock "0:00:27"]
[BlackClock "0:00:00"]
[Board "67"]

1. e4 {[%clk 0:03:00]}  c6 {[%clk 0:02:59]} 2. d4 {[%clk 0:03:00]}  d5 {[%clk 0:02:59]} 3. exd5 {[%clk 0:02:59]}  cxd5 {[%clk 0:02:59]} 4. Bd3 {[%clk 0:02:58]}  g6 {[%clk 0:02:58]} 5. c3 {[%clk 0:02:56]}  Nc6 {[%clk 0:02:53]} 6. h3 {[%clk 0:02:53]}  Nh6 {[%clk 0:02:53]} 7. Nf3 {[%clk 0:02:52]}  f6 {[%clk 0:02:54]} 8. Qe2 {[%clk 0:02:41]}  Nf7 {[%clk 0:02:52]} 9. O-O {[%clk 0:01:49]}  Bg7 {[%clk 0:02:52]} 10. c4 {[%clk 0:01:39]}  dxc4 {[%clk 0:02:50]} 11. Bxc4 {[%clk 0:01:39]}  O-O {[%clk 0:02:50]} 12. d5 {[%clk 0:01:33]}  Nce5 {[%clk 0:02:47]} 13. Bb3 {[%clk 0:01:29]}  a5 {[%clk 0:02:42]} 14. Nc3 {[%clk 0:01:28]}  b6 {[%clk 0:02:42]} 15. Nd4 {[%clk 0:01:23]}  Ba6 {[%clk 0:02:37]} 16. Ndb5 {[%clk 0:01:23]}  Nd6 {[%clk 0:02:29]} 17. a4 {[%clk 0:01:22]}  Rc8 {[%clk 0:02:22]} 18. f4 {[%clk 0:01:11]}  Bxb5 {[%clk 0:02:13]} 19. Nxb5 {[%clk 0:01:03]}  Nef7 {[%clk 0:02:09]} 20. Nd4 {[%clk 0:01:01]}  Qd7 {[%clk 0:02:00]} 21. Ne6 {[%clk 0:00:56]}  f5 {[%clk 0:01:50]} 22. Nxg7 {[%clk 0:00:53]}  Kxg7 {[%clk 0:01:45]} 23. Be3 {[%clk 0:00:54]}  Ne4 {[%clk 0:01:36]} 24. Bxb6 {[%clk 0:00:53]}  Nf6 {[%clk 0:01:30]} 25. Bd4 {[%clk 0:00:51]}  Nd6 {[%clk 0:01:29]} 26. Rad1 {[%clk 0:00:40]}  Ne4 {[%clk 0:01:28]} 27. Rfe1 {[%clk 0:00:38]}  Rb8 {[%clk 0:01:25]} 28. Bc2 {[%clk 0:00:38]}  Kg8 {[%clk 0:01:09]} 29. Bxf6 {[%clk 0:00:36]}  Nxf6 {[%clk 0:00:59]} 30. Qxe7 {[%clk 0:00:36]}  Qxe7 {[%clk 0:00:52]} 31. Rxe7 {[%clk 0:00:35]}  Rxb2 {[%clk 0:00:52]} 32. Bd3 {[%clk 0:00:35]}  Rb4 {[%clk 0:00:48]} 33. Bb5 {[%clk 0:00:33]}  Rd8 {[%clk 0:00:43]} 34. d6 {[%clk 0:00:33]}  Re4 {[%clk 0:00:39]} 35. Ra7 {[%clk 0:00:32]}  Rxf4 {[%clk 0:00:32]} 36. Rxa5 {[%clk 0:00:32]}  Re4 {[%clk 0:00:28]} 37. Ra7 {[%clk 0:00:30]}  f4 {[%clk 0:00:26]} 38. d7 {[%clk 0:00:29]}  Kf8 {[%clk 0:00:24]} 39. Rc7 {[%clk 0:00:28]}  Ke7 {[%clk 0:00:23]} 40. Rcc1 {[%clk 0:00:28]}  g5 {[%clk 0:00:21]} 41. Re1 {[%clk 0:00:28]}  Kd6 {[%clk 0:00:19]} 42. Rxe4 {[%clk 0:00:28]}  Nxe4 {[%clk 0:00:19]} 43. Rc8 {[%clk 0:00:28]}  Ke7 {[%clk 0:00:18]} 44. a5 {[%clk 0:00:27]}  Nd6 {[%clk 0:00:19]} 45. Rxd8 {[%clk 0:00:27]}  Kxd8 {[%clk 0:00:18]} 46. Ba4 {[%clk 0:00:27]}  Nb7 {[%clk 0:00:00]} 47. a6 {[%clk 0:00:27]} 1-0


[Site "https://www.chess.com"]